bitfinex-derivatives/quotes_ETHF0:USTF0_20241105
["timestamp","ask_amount","ask_price","bid_price","bid_amount"]
[1730815027008,0.28657,2443.5,2443.4,0.62045683]
[1730815027517,1.51257,2443.5,2443.4,0.62045683]
[1730815027705,1.51257,2443.5,2443.4,0.90703683]
[1730815028406,1.51257,2443.5,2443.4,0.62045683]
[1730815028610,1.51257,2443.5,2443.4,0.90703683]
[1730815029409,1.51257,2443.5,2443.4,0.90680799]
[1730815030207,4.73279802,2443.5,2443.4,0.90680799]
[1730815031010,4.73279802,2443.5,2443.4,0.62022799]
[1730815032711,2.69214042,2443.5,2443.4,0.62022799]
[1730815032903,6.44388737,2443.5,2443.4,0.62022799]
[1730815033103,7.05968737,2443.5,2443.4,0.62022799]
[1730815033303,7.05968737,2443.5,2443.4,0.38170141]
[1730815033514,7.05968737,2443.5,2443.4,0.23851696]
[1730815035717,11.15248737,2443.5,2443.4,0.23851696]
[1730815036017,11.15248737,2443.5,2443.1,0.93181]
[1730815036018,0.2866,2443.3,2443.2,0.2866]
[1730815036212,3.50747813,2443.3,2443.2,0.62022339]
[1730815036412,7.60027813,2443.3,2443.2,0.23852481]
[1730815037417,0.28662,2443.1,2443.0,4.77502]
[1730815037611,0.28662,2443.1,2443.0,5.39530766]
[1730815038918,0.6431,2443.2,2443.0,5.10868766]
[1730815039221,0.92971,2443.2,2443.1,0.90690766]
[1730815039621,0.92971,2443.2,2443.1,0.62028766]
[1730815040118,0.92971,2443.2,2443.1,0.90690766]
[1730815041419,0.92971,2443.2,2443.1,0.62028766]
[1730815043014,0.92971,2443.2,2443.1,0.90690766]
[1730815044417,0.92971,2443.2,2443.1,0.90693481]
[1730815044721,2.10928042,2443.2,2443.1,0.23855997]
[1730815045111,0.92971,2443.2,2443.1,0.23855997]
[1730815045307,4.40045855,2443.3,2443.1,0.23855997]
[1730815045308,3.22088813,2443.3,2443.1,0.23855997]
[1730815045512,3.22088813,2443.3,2443.2,0.23855997]
[1730815045513,3.50748813,2443.3,2443.2,0.23855997]
[1730815045718,3.50747813,2443.3,2443.2,1.16955997]
[1730815047425,3.50747813,2443.3,2443.2,1.55117997]
[1730815047813,3.22088813,2443.3,2443.2,1.55117997]
[1730815048019,3.22088813,2443.3,2443.2,2.11057042]
[1730815048220,3.22088813,2443.3,2443.2,2.73063703]
[1730815048415,3.22088813,2443.3,2443.2,2.96912022]
[1730815049326,3.22088813,2443.5,2443.2,2.4440557]
[1730815049520,3.22088813,2443.5,2443.4,0.28658]
[1730815049728,3.22088813,2443.5,2443.4,0.90666528]
[1730815050225,3.50745813,2443.5,2443.4,0.90666528]
[1730815050822,3.50745813,2443.5,2443.4,0.62008528]
[1730815051027,0.28657,2443.5,2443.4,0.2384717]
[1730815051223,4.03831695,2443.5,2443.4,0.2384717]
[1730815053829,0.28657,2443.5,2443.4,0.6201194]
[1730815054832,3.50899598,2443.5,2443.4,0.6201194]
[1730815055223,0.28657,2443.5,2443.4,0.6201194]
[1730815055425,3.5089892,2443.5,2443.4,0.2384717]
[1730815055624,0.28658,2443.4,2443.3,0.28659]
[1730815055837,0.28658,2443.4,2443.3,0.90697606]
[1730815056526,3.2224192,2443.5,2443.3,0.62038606]
[1730815056720,3.5089992,2443.5,2443.4,0.90696606]
[1730815056923,3.5089992,2443.5,2443.4,0.62038606]
[1730815057627,3.5089992,2443.5,2443.4,0.90696606]
[1730815058729,3.5089992,2443.5,2443.4,0.62038606]
[1730815058924,3.5089992,2443.5,2443.4,0.90696606]
[1730815059328,3.5089992,2443.5,2443.4,0.90688978]
[1730815059531,3.2224192,2443.5,2443.4,2.0864602]
[1730815059728,0.28657,2443.6,2443.5,0.28656]
[1730815059923,0.28657,2443.6,2443.5,4.94403927]
[1730815060129,0.28657,2443.6,2443.5,5.97572496]
[1730815060323,0.28656,2443.7,2443.6,0.28656]
[1730815060534,3.50831225,2443.7,2443.6,0.90692496]
[1730815062139,3.50831225,2443.7,2443.6,3.82816496]
[1730815062324,3.50831225,2443.7,2443.6,3.73293927]
[1730815062529,3.50831225,2443.7,2443.6,3.44637927]
[1730815062837,0.28656,2443.7,2443.6,3.44637927]
[1730815063134,0.28656,2443.7,2443.6,3.44625524]
[1730815063637,0.28656,2443.7,2443.6,3.73281524]
[1730815064035,3.5073891,2443.7,2443.6,3.73281524]
[1730815064536,3.50740288,2443.7,2443.6,3.73281524]
[1730815065233,0.28656,2443.7,2443.6,3.73281524]
[1730815065434,3.50729223,2443.7,2443.6,3.73281524]
[1730815065935,3.22073223,2443.7,2443.6,3.73281524]
[1730815066134,3.50728223,2443.7,2443.6,3.73281524]
[1730815066732,3.50728223,2443.7,2443.6,3.73272723]
[1730815068137,3.22073223,2443.7,2443.6,3.73272723]
[1730815068538,3.50728223,2443.7,2443.6,3.73272723]
[1730815069130,3.22073223,2443.7,2443.6,3.73272723]
[1730815069636,3.50728223,2443.7,2443.6,3.73272723]
[1730815069834,3.22073223,2443.7,2443.6,3.73272723]
[1730815070436,3.22073223,2443.7,2443.6,3.49436]
[1730815070629,3.22073223,2443.7,2443.6,3.73267308]
[1730815071634,3.22073223,2443.7,2443.6,4.9122435]
[1730815071939,3.22073223,2443.8,2443.7,0.28655]
[1730815072242,3.22073223,2443.8,2443.7,0.52486308]
[1730815072434,3.22073223,2443.9,2443.8,0.28653]
[1730815072738,3.50725223,2443.9,2443.8,0.52484308]
[1730815074233,3.50725223,2443.9,2443.8,0.28653]
[1730815074433,3.50725223,2443.9,2443.8,0.52472247]
[1730815074640,3.50725223,2443.9,2443.8,0.76291574]
[1730815075139,3.50725223,2443.9,2443.8,1.65595616]
[1730815075340,3.50725223,2443.9,2443.8,1.70429289]
[1730815075740,3.22073223,2443.9,2443.8,1.70429289]
[1730815076734,3.50725223,2443.9,2443.8,1.70429289]
[1730815078037,3.22073223,2443.9,2443.8,1.70429289]
[1730815078437,3.50724223,2444.0,2443.8,1.70429289]
[1730815078640,3.50724223,2444.0,2443.9,0.6074]
[1730815078839,3.50724223,2444.0,2443.9,0.89392]
[1730815079040,3.50724223,2444.0,2443.9,0.6074]
[1730815079234,3.22073223,2444.0,2443.9,0.6074]
[1730815079442,41.4038,2444.1,2443.9,1.50896215]
[1730815079443,44.02073223,2444.1,2443.9,1.50896215]
[1730815079734,41.0865,2444.1,2444.0,0.28651]
[1730815080242,40.8,2444.1,2444.0,0.28651]
[1730815080835,2.68065142,2444.1,2444.0,5.50878286]
[1730815081036,3.22073223,2444.4,2444.0,5.50878286]
[1730815081037,2.68065142,2444.2,2444.1,0.2865]
[1730815081234,2.68065142,2444.2,2444.1,1.70406035]
[1730815081431,2.68065142,2444.3,2444.2,0.28649]
[1730815081636,2.68065142,2444.3,2444.2,3.73225411]
[1730815082343,43.76712142,2444.4,2444.2,3.49429]
[1730815082542,43.76712142,2444.4,2444.3,0.6593]
[1730815082943,43.48065142,2444.4,2444.3,0.94578]
[1730815083246,43.48065142,2444.4,2444.3,2.73395042]
[1730815083450,43.76711142,2444.4,2444.3,2.73395042]
[1730815083953,2.96711142,2444.4,2444.3,2.73395042]
[1730815084252,0.28646,2444.4,2444.3,2.73395042]
[1730815084437,2.96711142,2444.4,2444.3,2.73395042]
[1730815085037,0.28646,2444.4,2444.3,2.73395042]
[1730815086047,2.68065142,2444.5,2444.3,1.55438]
[1730815086242,2.68065142,2444.5,2444.4,0.28646]
[1730815086440,2.68065142,2444.5,2444.4,1.46603042]
[1730815086635,44.37910142,2444.6,2444.5,0.28645]
[1730815086939,3.28805475,2444.6,2444.5,1.46602042]
[1730815087143,2.67605475,2444.6,2444.5,1.46602042]
[1730815087449,2.67605475,2444.7,2444.6,0.28644]
[1730815087751,0.91782,2444.8,2444.7,0.28643]
[1730815087752,3.59387475,2444.8,2444.7,0.28643]
[1730815087951,3.30745475,2444.8,2444.7,0.28643]
[1730815088244,3.30745475,2444.8,2444.5,4.38737042]
[1730815088443,2.13941838,2444.7,2444.6,0.28643]
[1730815088849,2.13941838,2444.8,2444.7,0.28643]
[1730815089146,2.13941838,2444.8,2444.7,1.46600042]
[1730815089341,3.92785475,2445.0,2444.8,0.28642]
[1730815089342,2.13941838,2444.9,2444.8,0.28642]
[1730815089548,2.42582838,2444.9,2444.8,1.3249]
[1730815089744,2.42582838,2444.9,2444.8,0.6584]
[1730815089745,0.28641,2444.9,2444.8,0.6584]
[1730815090846,4.21425475,2445.0,2444.8,0.94481]
[1730815091153,3.92785475,2445.0,2444.8,0.94481]
[1730815091353,0.28641,2444.9,2444.8,0.94482]
[1730815092048,4.21425475,2445.0,2444.8,0.94482]
[1730815092246,1.5382,2445.0,2444.8,0.94482]
[1730815093450,40.8,2444.9,2444.8,2.12439042]
[1730815093855,41.08641,2444.9,2444.8,2.12439042]
[1730815094445,41.08641,2444.9,2444.8,0.6584]
[1730815094650,41.08641,2444.9,2444.8,0.94482]
[1730815094947,41.08641,2444.9,2444.8,0.6584]
[1730815095251,0.28641,2444.9,2444.8,0.94482]
[1730815095548,1.5382,2445.0,2444.8,0.94482]
[1730815095850,0.28641,2444.9,2444.8,0.94482]
[1730815096054,0.28641,2444.9,2444.8,0.6584]
[1730815096251,0.28641,2444.9,2444.8,0.94482]
[1730815096847,0.28641,2444.9,2444.8,0.6584]
[1730815097044,42.0518,2445.0,2444.8,0.94482]
[1730815097242,42.3382,2445.0,2444.8,0.94482]
[1730815097758,42.3382,2445.0,2444.9,0.28641]
[1730815098345,42.33819,2445.0,2444.9,0.28641]
[1730815098549,42.0518,2445.0,2444.8,0.6584]
[1730815098852,42.3382,2445.0,2444.9,0.28641]
[1730815099155,0.28641,2444.9,2444.8,0.94481]
[1730815099350,42.0518,2445.0,2444.7,4.67380042]
[1730815099550,42.0518,2445.0,2444.7,4.38737042]
[1730815099757,0.28641,2444.9,2444.8,0.28642]
[1730815100143,42.0518,2445.0,2444.7,4.67379042]
[1730815100349,0.28644,2444.7,2444.5,0.6541]
[1730815100551,0.6458,2444.6,2444.5,0.94055]
[1730815101052,0.28646,2444.5,2444.4,1.46603042]
[1730815101353,0.6458,2444.6,2444.5,0.28645]
[1730815101354,0.93224,2444.6,2444.5,0.28645]
[1730815101749,0.28644,2444.6,2444.5,0.28645]
[1730815102146,0.28644,2444.6,2444.4,1.46603042]
[1730815102342,0.28644,2444.7,2444.4,1.17957042]
[1730815102546,0.28644,2444.7,2444.6,1.46601042]
[1730815103056,0.28644,2444.7,2444.6,1.17957042]
[1730815103249,0.28644,2444.7,2444.6,1.46601042]
[1730815103457,0.6458,2444.8,2444.6,1.46601042]
[1730815103655,0.28643,2444.7,2444.6,1.17957042]
[1730815103955,0.28643,2444.7,2444.6,1.46601042]
[1730815104564,0.6458,2444.8,2444.6,1.17957042]
[1730815104750,0.6458,2444.8,2444.7,0.28643]
[1730815104751,0.93223,2444.8,2444.7,0.28643]
[1730815105761,0.93222,2444.8,2444.7,1.46600042]
[1730815106161,0.28641,2444.9,2444.7,1.17957042]
[1730815106361,0.28641,2444.9,2444.8,1.55762]
[1730815107763,0.28641,2444.9,2444.8,1.2712]
[1730815108955,0.28641,2444.9,2444.8,1.55762]
[1730815109865,44.72165475,2445.0,2444.6,0.28644]
[1730815109866,0.28644,2444.7,2444.6,0.28644]
[1730815110070,45.43765475,2445.0,2444.5,2.08501042]
[1730815110071,0.28644,2444.6,2444.5,2.08501042]
[1730815110958,0.28644,2444.7,2444.6,0.28644]
[1730815111158,0.28644,2444.7,2444.6,0.94694]
[1730815112066,0.28644,2444.7,2444.6,2.12651042]
[1730815112866,0.28644,2444.7,2444.6,1.84007042]
[1730815113562,0.28644,2444.7,2444.6,2.12651042]
[1730815114765,0.28644,2444.7,2444.6,1.84007042]
[1730815115266,0.28644,2444.7,2444.3,0.95227]
[1730815115267,4.0904,2444.7,2444.3,0.95227]
[1730815115459,0.28646,2444.4,2444.3,1.84537042]
[1730815115766,0.28648,2444.3,2444.2,1.2431]
[1730815116067,0.28648,2444.3,2444.2,2.70916042]
[1730815116068,0.91488,2444.3,2444.2,2.70916042]
[1730815116463,0.91488,2444.3,2444.2,2.42267042]
[1730815116663,0.91488,2444.3,2444.2,1.2431]
[1730815117263,0.91488,2444.3,2444.2,1.52959]
[1730815117468,0.28648,2444.3,2444.2,1.52959]
[1730815118066,0.28648,2444.3,2444.2,1.2431]
[1730815119063,0.28648,2444.3,2444.2,1.52959]
[1730815119259,2.67605475,2444.4,2444.2,1.2431]
[1730815119466,2.67605475,2444.4,2444.3,1.17957042]
[1730815119467,2.96252475,2444.4,2444.3,1.17957042]
[1730815119965,0.28648,2444.3,2444.2,1.17957042]
[1730815120177,2.9635644,2444.3,2444.2,1.17957042]
[1730815120369,2.9635644,2444.3,2444.2,1.78617042]
[1730815121463,2.9635644,2444.3,2444.2,1.17957042]
[1730815121664,0.28648,2444.3,2444.2,1.17957042]
[1730815122775,0.28648,2444.3,2444.2,1.46606042]
[1730815124270,0.28648,2444.3,2444.2,1.17957042]
[1730815124674,0.28649,2444.2,2444.0,0.6197]
[1730815124875,0.2865,2444.1,2444.0,0.6197]
[1730815126069,4.46833223,2444.2,2443.9,1.80757042]
[1730815126275,0.28652,2443.9,2443.8,1.46610042]
[1730815126476,2.96631078,2443.9,2443.8,2.07340042]
[1730815128175,2.67979078,2443.9,2443.8,2.07340042]
[1730815128473,2.67979078,2444.2,2444.1,0.2865]
[1730815128676,2.67979078,2444.2,2444.1,1.46607042]
[1730815129678,2.67979078,2444.2,2444.1,2.74087042]
[1730815130075,2.96628078,2444.2,2444.1,2.74087042]
[1730815130974,0.28649,2444.2,2444.1,2.45437042]
[1730815131170,0.28649,2444.2,2444.1,2.74087042]
[1730815131572,2.96426304,2444.2,2444.1,2.74087042]
[1730815134382,2.96426304,2444.2,2444.1,2.45437042]
[1730815134681,2.96426304,2444.2,2444.1,2.74087042]
[1730815140970,2.96426304,2444.2,2444.1,2.45437042]
[1730815141175,2.96426304,2444.2,2444.1,0.6581]
[1730815141386,0.28649,2444.2,2444.1,0.6581]
[1730815141682,0.28651,2444.0,2443.9,3.8697]
[1730815141881,0.28651,2444.0,2443.9,4.75422]
[1730815142276,0.28651,2444.0,2443.9,4.4677]
[1730815142774,2.96409105,2444.0,2443.9,4.4677]
[1730815143176,2.96409105,2444.0,2443.9,1.2599]
[1730815143483,2.96409105,2444.0,2443.9,1.54642]
[1730815143683,0.28651,2444.0,2443.9,1.54642]
[1730815145483,2.96409105,2444.0,2443.9,1.2599]
[1730815145687,2.96409105,2444.0,2443.9,1.54642]
[1730815146777,2.96409105,2444.0,2443.9,1.2599]
[1730815147379,2.96409105,2444.0,2443.9,1.54642]
[1730815148186,2.67758105,2444.0,2443.8,1.80267042]
[1730815148380,0.90672,2443.9,2443.8,2.08920042]
[1730815148684,0.28655,2443.7,2443.6,1.2227]
[1730815148883,2.67846262,2443.7,2443.4,1.17957042]
[1730815149092,0.28657,2443.5,2443.4,1.2736]
[1730815149388,2.96503262,2443.5,2443.4,1.2736]
[1730815149585,2.96455003,2443.5,2443.4,1.2736]
[1730815150585,2.96455003,2443.5,2443.4,1.56018]
[1730815150987,2.67798003,2443.5,2443.4,1.56018]
[1730815151291,0.28657,2443.5,2443.4,1.56018]
[1730815153988,0.28657,2443.5,2443.4,1.2736]
[1730815154193,0.28657,2443.5,2443.4,1.56018]
[1730815154388,2.67798003,2443.6,2443.4,2.45317042]
[1730815154579,0.28656,2443.6,2443.5,1.46614042]
[1730815154780,2.96453003,2443.7,2443.5,1.17957042]
[1730815155095,0.28656,2443.6,2443.5,1.46613042]
[1730815155393,0.28656,2443.6,2443.5,4.38737042]
[1730815155594,0.28656,2443.6,2443.5,4.67394042]
[1730815155986,0.28656,2443.6,2443.5,1.46614042]
[1730815156881,2.96453003,2443.7,2443.6,0.28656]
[1730815157078,0.28655,2443.7,2443.6,0.28656]
[1730815157793,2.96453003,2443.7,2443.6,0.28656]
[1730815157993,0.28655,2443.7,2443.6,0.28656]
[1730815158190,2.67798003,2443.8,2443.5,1.17957042]
[1730815158493,2.67798003,2443.9,2443.7,1.17957042]
[1730815158687,3.92123223,2444.2,2443.9,0.28652]
[1730815158688,2.96450003,2444.0,2443.9,0.28652]
[1730815160596,2.67798003,2444.0,2443.9,0.28652]
[1730815160786,2.96449003,2444.0,2443.9,0.28652]
[1730815162390,2.67798003,2444.0,2443.9,0.28652]
[1730815163989,0.28651,2444.0,2443.9,0.28652]
[1730815164392,2.67945995,2444.0,2443.9,0.28652]
[1730815165800,2.67945995,2444.1,2444.0,0.28651]
[1730815165995,2.67945995,2444.1,2444.0,1.46608042]
[1730815166295,2.67945995,2444.1,2444.0,1.70072418]
[1730815167698,2.67945995,2444.1,2444.0,5.55728042]
[1730815167887,2.67945995,2444.2,2444.1,0.2865]
[1730815168089,2.67945995,2444.2,2444.1,1.46607042]
[1730815168995,2.67945995,2444.2,2444.1,2.64564084]
[1730815169194,2.67945995,2444.2,2444.1,2.88029053]
[1730815169396,2.67945995,2444.2,2444.1,1.70072011]
[1730815170791,2.96594995,2444.2,2444.1,1.70072011]
[1730815171503,2.96594995,2444.2,2444.1,1.70070307]
[1730815171697,2.96594995,2444.2,2444.1,1.46607042]
[1730815171892,2.96594995,2444.2,2444.1,1.70069553]
[1730815172399,2.96594995,2444.2,2444.1,1.70068547]
[1730815172600,2.67945995,2444.2,2444.1,1.46607042]
[1730815173201,2.67945995,2444.2,2444.1,1.70068232]
[1730815173405,2.67945995,2444.2,2444.1,1.46607042]
[1730815174514,2.96594995,2444.2,2444.1,1.46607042]
[1730815174801,2.96594995,2444.2,2444.1,1.17957042]
[1730815174997,0.28649,2444.2,2444.1,1.46607042]
[1730815177995,0.28649,2444.2,2444.1,1.17957042]
[1730815178703,0.2865,2444.1,2444.0,3.49431]
[1730815179006,0.28652,2443.9,2443.8,2.38347042]
[1730815179302,2.96611842,2443.9,2443.8,1.77397042]
[1730815179802,0.28652,2443.9,2443.8,1.17957042]
[1730815180403,0.28652,2443.9,2443.8,1.46610042]
[1730815183004,0.28652,2443.9,2443.8,1.17957042]
[1730815183395,0.28652,2443.9,2443.8,1.46610042]
[1730815185210,41.08652,2443.9,2443.8,1.17957042]
[1730815185811,41.08652,2443.9,2443.8,1.46610042]
[1730815186613,0.28652,2443.9,2443.8,1.17957042]
[1730815188005,0.28652,2443.9,2443.8,1.46610042]
[1730815189311,41.08652,2444.0,2443.9,0.28652]
[1730815189513,41.08652,2444.0,2443.9,2.12549042]
[1730815189514,0.28652,2444.0,2443.9,2.12549042]
[1730815189909,4.37852,2444.0,2443.9,2.12549042]
[1730815190106,0.28652,2444.0,2443.9,2.12549042]
[1730815191509,0.28652,2444.0,2443.9,1.83897042]
[1730815191716,0.28652,2444.0,2443.9,2.12549042]
[1730815193721,4.092,2444.0,2443.7,3.2078]
[1730815194008,2.96652719,2443.8,2443.7,4.38737042]
[1730815194216,2.96655202,2443.8,2443.7,4.38737042]
[1730815194808,2.96655202,2443.8,2443.7,4.67392042]
[1730815195210,0.28653,2443.8,2443.7,3.2078]
[1730815195516,0.28653,2443.8,2443.7,4.38737042]
[1730815195915,0.28653,2443.8,2443.7,4.67392042]
[1730815196111,0.28653,2443.8,2443.7,4.38737042]
[1730815196611,0.28653,2443.8,2443.7,1.17957042]
[1730815198209,0.28653,2443.8,2443.6,0.612]
[1730815198210,0.654,2443.8,2443.6,0.612]
[1730815198409,0.28658,2443.4,2443.3,4.38737042]
[1730815198615,2.96779603,2443.4,2443.3,4.62219919]
[1730815198819,41.08658,2443.4,2443.3,3.44262877]
[1730815199022,41.08658,2443.4,2443.3,3.2078]
[1730815199813,42.26615042,2443.4,2443.3,3.2078]
[1730815200013,45.48688265,2443.4,2443.3,3.2078]
[1730815200620,0.71649,2443.3,2442.4,4.38737042]
[1730815200824,0.71649,2443.3,2442.7,0.28666]
[1730815200825,2.68177089,2442.8,2442.7,0.28666]
[1730815201123,2.68177089,2442.8,2442.7,1.70125239]
[1730815201424,2.96842089,2442.8,2442.7,1.70125239]
[1730815201619,0.28665,2442.8,2442.7,1.46623042]
[1730815201916,2.68177089,2442.9,2442.8,0.28665]
[1730815202111,2.68177089,2442.9,2442.8,0.92245]
[1730815203517,2.96840089,2443.0,2442.8,0.92245]
[1730815203715,2.96840089,2443.0,2442.9,2.10161042]
[1730815204116,2.68177089,2443.0,2442.9,2.10161042]
[1730815204310,2.68177089,2443.1,2443.0,0.28663]
[1730815204517,2.96837089,2443.3,2443.0,4.38737042]
[1730815204714,2.96837089,2443.3,2443.2,0.2866]
[1730815205020,2.96837089,2443.3,2443.2,1.46617042]
[1730815205319,0.28659,2443.3,2443.2,2.07407042]
[1730815206716,0.28659,2443.3,2443.2,1.78747042]
[1730815207922,2.68177089,2443.4,2443.2,1.78747042]
[1730815208120,2.68177089,2443.5,2443.3,1.17957042]
[1730815208320,6.17614089,2443.6,2443.4,0.91598]
[1730815208715,6.17614089,2443.6,2443.5,0.6284]
[1730815209119,2.96834089,2443.6,2443.5,0.6284]
[1730815210818,3.86134131,2443.6,2443.4,0.6294]
[1730815211015,3.86134131,2443.6,2443.0,1.289]
[1730815211016,8.48017042,2443.5,2443.0,1.289]
[1730815211215,8.48017042,2443.5,2442.9,3.2078]
[1730815211216,0.28663,2443.0,2442.9,3.2078]
[1730815211716,0.92733,2443.0,2442.9,3.2078]
[1730815212425,0.28664,2442.9,2442.8,1.17957042]
[1730815213322,0.6407,2443.0,2442.7,0.28665]
[1730815213523,0.28665,2442.8,2442.7,0.28665]
[1730815214025,0.28665,2442.9,2442.7,0.28665]
[1730815214218,0.28665,2442.9,2442.8,0.6529]
[1730815218026,0.28663,2443.0,2442.8,3.20961705]
[1730815218227,1.32199,2443.4,2442.6,7.05351705]
[1730815218228,0.6454,2443.1,2442.6,7.05351705]
[1730815218524,0.28666,2442.7,2442.6,4.4968]
[1730815219428,0.28666,2442.8,2442.6,7.05351705]
[1730815219630,3.32717089,2443.1,2442.7,0.28666]
[1730815219932,0.28665,2442.8,2442.7,0.28666]
[1730815220425,0.28665,2442.9,2442.7,0.28666]
[1730815220618,0.28666,2442.7,2442.6,4.78347]
[1730815221230,0.28666,2442.8,2442.6,4.78347]
[1730815221420,0.28666,2442.7,2442.6,4.4968]
[1730815222024,0.28666,2442.7,2442.6,4.78348]
[1730815222230,0.28666,2442.7,2442.6,4.4968]
[1730815222831,0.28666,2442.7,2442.6,4.78348]
[1730815223429,3.32717089,2443.1,2442.6,7.05351705]
[1730815223636,0.6454,2443.1,2442.6,7.05351705]
[1730815223936,0.28664,2442.9,2442.8,0.28664]
[1730815224326,0.28663,2443.0,2442.9,0.28663]
[1730815224928,0.28664,2443.0,2442.6,6.41551705]
[1730815225135,0.6454,2443.1,2442.7,0.28666]
[1730815225332,0.6454,2443.1,2442.6,3.8588]
[1730815225537,0.28663,2443.0,2442.6,4.14547]
[1730815225736,0.28665,2442.9,2442.7,0.28665]
[1730815225939,0.6454,2443.1,2442.7,0.28665]
[1730815226139,0.28663,2443.0,2442.6,6.41551705]
[1730815226342,0.28663,2443.0,2442.9,0.28663]
[1730815226642,0.93202,2443.1,2443.0,0.28663]
[1730815226831,0.28663,2443.0,2442.9,0.28663]
[1730815227132,0.93203,2443.1,2442.6,7.13220705]
[1730815227331,0.93203,2443.1,2442.9,0.28663]
[1730815227532,0.93203,2443.1,2443.0,0.28663]
[1730815228131,0.28663,2443.0,2442.9,0.28663]
[1730815228333,0.28663,2443.0,2442.9,0.52082693]
[1730815228538,0.93202,2443.1,2443.0,0.28663]
[1730815229835,5.02562,2443.1,2443.0,0.28663]
[1730815230030,4.739,2443.1,2443.0,0.28663]
[1730815230236,0.93202,2443.1,2443.0,0.28663]
[1730815230435,5.02562,2443.1,2442.6,7.13220705]
[1730815230636,0.6454,2443.1,2442.7,0.52083262]
[1730815230836,0.28665,2442.9,2442.8,0.23417262]
[1730815232645,0.28666,2442.7,2442.6,3.8588]
[1730815232840,41.08666,2442.7,2442.6,4.09307092]
[1730815233344,41.08666,2442.7,2442.6,4.37975092]
[1730815233554,41.08666,2442.7,2442.6,4.09307092]
[1730815233939,41.08666,2442.7,2442.6,4.37975092]
[1730815234245,0.28666,2442.7,2442.6,4.37975092]
[1730815234547,0.28666,2442.7,2442.6,4.09307092]
[1730815234746,0.28666,2442.7,2442.6,4.37975092]
[1730815235044,41.4152,2442.8,2442.6,4.09307092]
[1730815235245,41.70186,2442.8,2442.7,0.52093092]
[1730815235546,0.90186,2442.8,2442.7,0.52093092]
[1730815235747,0.28665,2442.9,2442.8,0.28665]
[1730815235946,0.28665,2442.9,2442.8,0.52092092]
[1730815236147,0.28665,2442.9,2442.8,0.23427092]
[1730815236544,0.28665,2442.8,2442.7,0.28666]
[1730815236745,0.88125,2442.8,2442.7,0.28666]
[1730815236944,0.88125,2442.8,2442.7,0.52042273]
[1730815237139,0.88125,2442.8,2442.7,0.23376273]
[1730815237346,8.18265,2442.8,2442.7,0.23376273]
[1730815237546,8.77935,2442.8,2442.7,0.23376273]
[1730815239152,0.28669,2442.5,2442.4,0.93939]
[1730815239350,0.28669,2442.5,2442.4,1.1732907]
[1730815240252,0.28669,2442.5,2442.4,1.1733375]
[1730815241455,0.28669,2442.5,2442.4,0.8866475]
[1730815241654,0.28669,2442.5,2442.4,1.1733475]
[1730815241854,0.28669,2442.5,2442.4,0.8866475]
[1730815242256,0.28669,2442.5,2442.4,1.1733475]
[1730815243554,0.28668,2442.6,2442.5,0.28668]
[1730815244157,3.8024,2442.8,2442.5,0.23409905]
[1730815244460,0.28667,2442.7,2442.6,1.13866905]
[1730815247759,0.28667,2442.7,2442.6,1.13868039]
[1730815248058,0.28667,2442.7,2442.6,1.37279187]
[1730815248255,0.28667,2442.7,2442.6,0.85201148]
[1730815249359,0.28667,2442.7,2442.6,1.13869148]
[1730815249765,0.28667,2442.7,2442.6,0.85201148]
[1730815251164,0.28667,2442.7,2442.6,1.13869148]
[1730815251354,0.28667,2442.7,2442.6,0.85201148]
[1730815252962,1.46686615,2442.7,2442.6,0.23411148]
[1730815254363,4.14863704,2442.7,2442.6,0.23411148]
[1730815255359,1.46686615,2442.7,2442.6,0.23411148]
[1730815255964,5.56046615,2442.7,2442.6,0.23411148]
[1730815256162,0.2867,2442.4,2442.3,3.49451]
[1730815256365,1.46689615,2442.4,2442.3,3.44206439]
[1730815256567,4.14982628,2442.4,2442.3,3.72877439]
[1730815256764,4.14982628,2442.4,2442.3,3.44206439]
[1730815256963,4.14982628,2442.4,2442.3,3.72877439]
[1730815257566,4.14982628,2442.4,2442.3,0.52097439]
[1730815258268,4.14982628,2442.4,2442.3,0.23426439]
[1730815258965,1.46689615,2442.4,2442.3,0.23426439]
[1730815259168,3.86367886,2442.4,2442.2,0.28672]
[1730815259359,3.86367886,2442.4,2442.1,1.2354]
[1730815259561,4.15037886,2442.4,2442.3,0.23434314]
[1730815259872,4.15037886,2442.4,2442.2,0.28672]
[1730815259873,0.28671,2442.3,2442.2,0.28672]
[1730815260070,0.28671,2442.3,2442.2,1.1586327]
[1730815260274,0.28671,2442.3,2442.2,1.53356239]
[1730815260577,2.68348271,2442.4,2442.2,1.24685239]
[1730815260759,2.68348271,2442.4,2442.2,0.8719127]
[1730815260963,2.97018271,2442.4,2442.3,0.5210227]
[1730815261165,2.97018271,2442.4,2442.3,0.2343127]
[1730815261365,0.2867,2442.4,2442.3,0.2343127]
[1730815261769,2.96992354,2442.4,2442.3,0.2343127]
[1730815264482,1.46689615,2442.4,2442.3,0.2343127]
[1730815265276,1.46689615,2442.4,2442.2,0.6376]
[1730815265277,0.28671,2442.3,2442.2,0.6376]
[1730815265773,0.91091,2442.3,2442.2,0.87192989]
[1730815269176,0.91091,2442.3,2442.2,0.6376]
[1730815269483,0.91091,2442.3,2442.2,0.87198381]
[1730815270779,0.91091,2442.3,2442.2,1.15870381]
[1730815271184,0.28671,2442.3,2442.2,1.15870381]
[1730815271588,1.76319615,2442.5,2442.2,1.15870381]
[1730815271589,0.28671,2442.4,2442.3,0.28671]
[1730815271800,0.28671,2442.4,2442.3,0.52109381]
[1730815272195,0.583,2442.5,2442.3,0.52109381]
[1730815272196,0.583,2442.5,2442.3,0.23438381]
[1730815272497,0.28669,2442.5,2442.4,0.52108381]
[1730815273001,3.2078,2442.6,2442.5,0.28669]
[1730815273296,3.2078,2442.6,2442.5,1.75907381]
[1730815273496,3.2078,2442.6,2442.5,2.39727381]
[1730815273892,3.49448,2442.6,2442.5,2.11058381]
[1730815274091,4.67467615,2442.6,2442.5,2.11058381]
[1730815274696,8.76907615,2442.6,2442.5,0.23438381]
[1730815274991,8.48239615,2442.6,2442.1,1.2572]
[1730815275192,0.28672,2442.2,2442.1,1.2572]
[1730815275499,1.46691615,2442.2,2442.1,0.2344121]
[1730815275800,6.20271615,2442.2,2442.1,0.2344121]
[1730815275993,6.20271615,2442.2,2442.0,4.08854]
[1730815275994,0.28673,2442.1,2442.0,3.8018]